[Event "FIDE Grand Swiss 2023"]
[Site "Villa Marina, Douglas, Isle of Man, Isle Of Man"]
[Date "2023.10.30"]
[Round "6.39"]
[White "Karthikeyan, Murali"]
[Black "Martirosyan, Haik M."]
[Result "1/2-1/2"]
[TimeControl "40/90 + 30 + 30s/move"]
[WhiteFideId "5074452"]
[BlackFideId "13306553"]
[WhiteElo "2611"]
[BlackElo "2696"]

1. e4 {[%clk 01:40:56]} {[%emt 00:00:03]} e5 {[%clk 01:40:53]} {[%emt
00:00:07]} 2. Nf3 {[%clk 01:41:19]} {[%emt 00:00:07]} Nc6 {[%clk 01:41:18]}
{[%emt 00:00:05]} 3. Bb5 {[%clk 01:41:42]} {[%emt 00:00:07]} Nf6 {[%clk
01:41:42]} {[%emt 00:00:07]} 4. O-O {[%clk 01:42:06]} {[%emt 00:00:06]} Nxe4
{[%clk 01:42:06]} {[%emt 00:00:05]} 5. d4 {[%clk 01:42:30]} {[%emt 00:00:06]}
Nd6 {[%clk 01:42:28]} {[%emt 00:00:08]} 6. Bxc6 {[%clk 01:42:54]} {[%emt
00:00:07]} dxc6 {[%clk 01:42:51]} {[%emt 00:00:06]} 7. dxe5 {[%clk 01:43:18]}
{[%emt 00:00:06]} Nf5 {[%clk 01:43:16]} {[%emt 00:00:06]} 8. Qxd8+ {[%clk
01:43:39]} {[%emt 00:00:09]} Kxd8 {[%clk 01:43:42]} {[%emt 00:00:03]} 9. h3
{[%clk 01:44:00]} {[%emt 00:00:10]} h5 {[%clk 01:43:19]} {[%emt 00:00:53]} 10.
Nc3 {[%clk 01:44:15]} {[%emt 00:00:15]} Ke8 {[%clk 01:42:27]} {[%emt 00:01:21]}
11. Bf4 {[%clk 01:44:30]} {[%emt 00:00:15]} Be7 {[%clk 01:41:33]} {[%emt
00:01:25]} 12. Rad1 {[%clk 01:44:46]} {[%emt 00:00:13]} Nh4 {[%clk 01:40:41]}
{[%emt 00:01:22]} 13. Nd4 {[%clk 01:45:05]} {[%emt 00:00:12]} Nf5 {[%clk
01:40:19]} {[%emt 00:00:52]} 14. Nf3 {[%clk 01:45:12]} {[%emt 00:00:23]} Nh4
{[%clk 01:40:36]} {[%emt 00:00:13]} 15. Nd4 {[%clk 01:45:35]} {[%emt 00:00:07]}
Nf5 {[%clk 01:41:00]} {[%emt 00:00:06]} 16. Nce2 {[%clk 01:45:28]} {[%emt
00:00:36]} g5 {[%clk 01:39:56]} {[%emt 00:01:34]} 17. Bh2 {[%clk 01:45:41]}
{[%emt 00:00:18]} Nxd4 {[%clk 01:39:21]} {[%emt 00:01:05]} 18. Nxd4 {[%clk
01:46:03]} {[%emt 00:00:07]} Rh6 {[%clk 01:39:22]} {[%emt 00:00:29]} 19. Rfe1
{[%clk 01:46:09]} {[%emt 00:00:24]} Bd8 {[%clk 01:33:35]} {[%emt 00:06:17]} 20.
e6 {[%clk 01:44:20]} {[%emt 00:02:19]} Bxe6 {[%clk 01:31:01]} {[%emt 00:03:05]}
21. Nxe6 {[%clk 01:44:42]} {[%emt 00:00:08]} Rxe6 {[%clk 01:29:45]} {[%emt
00:01:45]} 22. Rxe6+ {[%clk 01:44:09]} fxe6 {[%clk 01:30:10]} {[%emt 00:01:08]}
23. Be5 {[%clk 01:43:33]} {[%emt 00:01:06]} Rc8 {[%clk 01:22:48]} {[%emt
00:07:52]} 24. g4 {[%clk 01:32:26]} {[%emt 00:11:37]} hxg4 {[%clk 01:20:09]}
{[%emt 00:03:10]} 25. hxg4 {[%clk 01:32:50]} {[%emt 00:00:05]} Be7 {[%clk
01:20:14]} {[%emt 00:00:25]} 26. Rd3 {[%clk 01:32:41]} {[%emt 00:00:40]} Rd8
{[%clk 01:09:26]} {[%emt 00:11:18]} 27. Bxc7 {[%clk 01:29:20]} {[%emt
00:03:50]} Rd5 {[%clk 01:07:30]} {[%emt 00:02:26]} 28. Kf1 {[%clk 01:23:37]}
{[%emt 00:06:14]} c5 {[%clk 00:46:40]} {[%emt 00:21:19]} 29. Ke2 {[%clk
00:55:49]} {[%emt 00:28:18]} c4 {[%clk 00:44:52]} {[%emt 00:02:18]} 30. Rxd5
{[%clk 00:50:33]} {[%emt 00:05:47]} exd5 {[%clk 00:45:14]} {[%emt 00:00:07]} 31.
f4 {[%clk 00:46:09]} {[%emt 00:04:54]} gxf4 {[%clk 00:44:56]} {[%emt 00:00:49]}
32. Kf3 {[%clk 00:43:41]} {[%emt 00:02:58]} Bf6 {[%clk 00:41:54]} {[%emt
00:03:32]} 33. b3 {[%clk 00:44:02]} {[%emt 00:00:08]} cxb3 {[%clk 00:42:02]}
{[%emt 00:00:22]} 34. cxb3 {[%clk 00:44:18]} {[%emt 00:00:14]} Kf7 {[%clk
00:42:11]} {[%emt 00:00:21]} 35. Kxf4 {[%clk 00:40:45]} {[%emt 00:04:03]} Kg6
{[%clk 00:38:19]} {[%emt 00:04:21]} 36. Be5 {[%clk 00:40:05]} {[%emt 00:01:11]}
Bg5+ {[%clk 00:37:58]} {[%emt 00:00:50]} 37. Kf3 {[%clk 00:40:29]} {[%emt
00:00:06]} a6 {[%clk 00:37:55]} {[%emt 00:00:34]} 38. Ke2 {[%clk 00:39:20]}
{[%emt 00:01:39]} Be7 {[%clk 00:35:39]} {[%emt 00:02:46]} 39. Bf4 {[%clk
00:37:42]} {[%emt 00:02:07]} Bf8 {[%clk 00:32:14]} {[%emt 00:03:57]} 40. Kd3
{[%clk 00:38:05]} {[%emt 00:00:07]} Bg7 {[%clk 00:31:42]} {[%emt 00:01:02]} 41.
Bd2 {[%clk 00:38:06]} {[%emt 00:00:29]} Bf6 {[%clk 00:30:48]} {[%emt 00:01:23]}
42. Bc3 {[%clk 00:38:25]} {[%emt 00:00:11]} Bd8 {[%clk 00:25:13]} {[%emt
00:06:06]} 43. Kd4 {[%clk 00:37:11]} {[%emt 00:01:43]} Bf6+ {[%clk 00:25:02]}
{[%emt 00:00:42]} 44. Kd3 {[%clk 00:37:35]} {[%emt 00:00:05]} Bd8 {[%clk
00:25:27]} {[%emt 00:00:05]} 45. Ke4 {[%clk 00:35:32]} {[%emt 00:02:46]}
1/2-1/2